lending/lending_fUSD_20240110
["ID","MTS","AMOUNT","RATE_DAILY","PERIOD"]
[311020280,1704871100354,531.67628362,0.00022502,2]
[311020281,1704871104649,845.29786338,0.00022502,2]
[311020282,1704871109885,282.78782843,0.00022502,2]
[311020283,1704871110452,274.04855424,0.00022502,2]
[311020286,1704871116352,533.42205377,0.00022502,2]
[311020288,1704871119463,176.95281129,0.00022502,2]
[311020289,1704871120843,155.0,0.00022502,2]
[311020290,1704871121908,282.67713145,0.00022502,2]
[311020291,1704871122402,15680.19062212,0.00022502,2]
[311020292,1704871123704,1891.38317566,0.00022502,2]
[311020293,1704871136518,7413.23671885,0.00022502,2]
[311020294,1704871137588,1890.61605852,0.00022502,2]
[311020295,1704871141792,1031.99438221,0.00022502,2]
[311020296,1704871156531,928.00005334,0.00022502,2]
[311020297,1704871156554,103.59718567,0.00022502,2]
[311020298,1704871166279,360.33822996,0.00022502,2]
[311020299,1704871176124,621.10234536,0.00022502,2]
[311020300,1704871179276,1634.74376624,0.00022502,2]
[311020301,1704871180270,360.18321748,0.00022078,2]
[311020302,1704871181093,338.55890367,0.00022502,2]
[311020303,1704871182538,559.78186451,0.00022502,2]
[311020304,1704871189052,2611.62517321,0.00022502,2]
[311020305,1704871192330,3185.89838635,0.00022502,2]
[311020306,1704871206511,543.37000018,0.00022502,2]
[311020307,1704871211727,155.0,0.00022502,2]
[311020308,1704871214617,696.68337901,0.00022502,2]
[311020309,1704871222026,155.0,0.00022502,2]
[311020310,1704871226034,520.66961615,0.00022502,2]
[311020311,1704871235147,155.0,0.00022502,2]
[311020312,1704871241933,608.8671776,0.00022502,2]
[311020313,1704871249406,360.58392018,0.00022502,2]
[311020314,1704871255566,156.53151362,0.00022502,2]
[311020315,1704871257155,1818.50081343,0.00022502,2]
[311020316,1704871260319,883.76517896,0.00022502,2]
[311020317,1704871272410,283.77880731,0.00022502,2]
[311020318,1704871273195,217.90339848,0.00022502,2]
[311020319,1704871277588,3668.51712263,0.00022502,2]
[311020320,1704871277611,918.88150841,0.00022502,2]
[311020321,1704871289755,155.0,0.00022502,2]
[311020322,1704871298521,1593.79984529,0.00018002,2]
[311020323,1704871299188,201.16385359,0.00022502,2]
[311020324,1704871304530,1031.79581061,0.00022502,2]
[311020325,1704871310248,155.0,0.00022502,2]
[311020326,1704871312696,155.0,0.00022502,2]
[311020327,1704871315589,401.41086428,0.00021827,2]
[311020328,1704871323590,1025.51368675,0.00022502,2]
[311020329,1704871341926,282.73247994,0.00022502,2]
[311020330,1704871346995,4079.70195113,0.00022502,2]
[311020331,1704871347017,8553.03668998,0.00022502,2]
[311020332,1704871351115,650.75415232,0.00022501,2]
[311020333,1704871352792,353.46384014,0.00022502,2]
[311020334,1704871359634,442.74531756,0.00022502,2]
[311020335,1704871423237,33330.41652738,0.00022501,2]
[311020336,1704871441901,275.0,0.00022501,2]
[311020337,1704871446288,3185.89838635,0.00022501,2]
[311020338,1704871462291,3185.89838635,0.00022078,2]
[311020339,1704871469819,155.0,0.00022501,2]
[311020340,1704871473341,515.27952543,0.00037154,30]
[311020341,1704871474784,155.0,0.00022501,2]
[311020342,1704871479929,608.8671776,0.00022501,2]
[311020343,1704871481906,150.0,0.00037159,30]
[311020344,1704871482293,3182.51611385,0.00022077,2]
[311020345,1704871487383,155.93660974,0.00022501,2]
[311020346,1704871488556,883.76517896,0.00022501,2]
[311020347,1704871490803,155.26017178,0.00022501,2]
[311020348,1704871501600,156.53151362,0.00022501,2]
[311020349,1704871509131,1031.79581061,0.00022501,2]
[311020350,1704871516273,155.0,0.00022501,2]
[311020351,1704871528879,531.67628362,0.00022501,2]
[311020352,1704871535706,155.0,0.00022501,2]
[311020353,1704871542883,531.47321458,0.00022501,2]
[311020354,1704871552851,542.3479697,0.00022501,2]
[311020355,1704871553740,217.90339848,0.00022501,2]
[311020356,1704871554811,302.67803736,0.00022501,2]
[311020357,1704871556805,360.33822996,0.00022501,2]
[311020358,1704871557695,156.25359738,0.00022501,2]
[311020359,1704871558817,170.37,0.00020576,2]
[311020360,1704871564306,3185.21463735,0.00022077,2]
[311020361,1704871569408,155.0,0.00022501,2]
[311020362,1704871570828,360.18321748,0.00018398,2]
[311020363,1704871574570,217.80770074,0.00022501,2]
[311020364,1704871578616,418.74265394,0.00022501,2]
[311020365,1704871578965,15683.21613264,0.00022501,2]
[311020366,1704871589399,155.0,0.00022501,2]
[311020367,1704871590662,543.47920788,0.00022501,2]
[311020368,1704871592619,418.54873156,0.00022501,2]
[311020369,1704871592995,15677.1651116,0.00022501,2]
[311020370,1704871597376,155.0,0.00022501,2]
[311020371,1704871598916,155.0,0.00022501,2]
[311020372,1704871604738,543.26079248,0.00022501,2]
[311020373,1704871605686,360.66298011,0.00022501,2]
[311020374,1704871611332,186.62869089,0.00022501,2]
[311020375,1704871613600,156.53151362,0.00022501,2]
[311020376,1704871617911,7414.76052604,0.00022501,2]
[311020377,1704871619692,360.50486025,0.00022501,2]
[311020378,1704871622164,1891.38317566,0.00022501,2]
[311020379,1704871625642,162.61089858,0.00022402,2]
[311020380,1704871635186,845.481875,0.00022501,2]
[311020381,1704871637952,282.73247994,0.00022501,2]
[311020382,1704871638218,1447.87074096,0.00022501,2]
[311020383,1704871639716,7411.71291166,0.00022501,2]
[311020384,1704871642979,283.84561309,0.00022501,2]
[311020385,1704871646000,608.8671776,0.00022501,2]
[311020386,1704871648132,1021.6094888,0.00022501,2]
[311020387,1704871650436,1096.02714429,0.00022501,2]
[311020388,1704871651171,845.11385176,0.00022501,2]
[311020389,1704871664872,360.26072372,0.00018398,2]
[311020390,1704871666152,1021.18031122,0.00022501,2]
[311020391,1704871668294,155.0,0.00022501,2]
[311020392,1704871668496,283.71200153,0.00022501,2]
[311020393,1704871669995,1100.00244564,0.00022501,2]
[311020394,1704871672595,520.78591039,0.00022501,2]
[311020395,1704871678320,3185.21463735,0.00022077,2]
[311020396,1704871679263,176.98991788,0.00022501,2]
[311020397,1704871685931,217.85554961,0.00022501,2]
[311020398,1704871686594,520.55332191,0.00022501,2]
[311020399,1704871696707,278.50918356,0.00022501,2]
[311020400,1704871697220,176.9157047,0.00022501,2]
[311020401,1704871701237,531.5747491,0.00022501,2]
[311020402,1704871712382,558.14255332,0.00022501,2]
[311020403,1704871736679,566.72678966,0.00022501,2]
[311020404,1704871742170,1547.46997487,0.00022501,2]
[311020405,1704871742637,1031.79581061,0.00022501,2]
[311020406,1704871744974,15680.19062212,0.00022501,2]
[311020409,1704871785942,379.63055492,0.00022501,2]
[311020410,1704871786180,1034.778656,0.00022501,2]
[311020411,1704871794975,7413.23671885,0.00022501,2]
[311020415,1704871803721,155.0,0.00022501,2]
[311020416,1704871805975,282.73247994,0.00022501,2]
[311020417,1704871811738,156.53151362,0.00022501,2]
[311020418,1704871813248,176.95281129,0.00022501,2]
[311020419,1704871819183,447.8203551,0.00022501,2]
[311020420,1704871824310,155.0,0.00022501,2]
[311020421,1704871831057,14229.3833492,0.00022501,2]
[311020449,1704871832335,-157.69365201,0.00022502,2]
[311020451,1704871832345,-255.74768049,0.00022502,2]
[311020453,1704871832354,-155.0,0.00022502,2]
[311020455,1704871832363,-155.84713853,0.00022502,2]
[311020457,1704871832382,-300.0,0.00022508,2]
[311020459,1704871832410,-156.18086526,0.00022767,2]
[311020461,1704871832419,-341.01465948,0.000229,2]
[311020463,1704871832428,-171.61482204,0.000229,2]
[311020465,1704871832437,-1028.52169741,0.000229,2]
[311020467,1704871832446,-252.88919684,0.000229,2]
[311020469,1704871832455,-4620.93266057,0.000229,2]
[311020471,1704871832464,-302.23206722,0.000229,2]
[311020472,1704871832473,-323.3983997,0.000229,2]
[311020474,1704871832483,-498.8579392,0.00022989,2]
[311020477,1704871832503,-546.0789247,0.00022997,2]
[311020479,1704871832513,-294.77751544,0.00022998,2]
[311020481,1704871832523,-16160.96869716,0.00022999,2]
[311020490,1704871832620,-10925.4521482,0.00022999,2]
[311020492,1704871832633,-787.36923075,0.00022999,2]
[311020494,1704871832657,-3964.69407762,0.00022999,2]
[311020496,1704871832669,-459.2369133,0.00022999,2]
[311020500,1704871832699,-2080.33042751,0.00022999,2]
[311020502,1704871832711,-611.97438854,0.00022999,2]
[311020505,1704871832722,-49610.7667196,0.00022999,2]
[311020507,1704871832734,-148226.18534167,0.00022999,2]
[311020508,1704871832745,-359.03835404,0.00022999,2]
[311020518,1704871832836,-312.06068321,0.00022999,2]
[311020520,1704871832848,-381.79850293,0.00022999,2]
[311020526,1704871832900,-437.66595974,0.00022999,2]
[311020528,1704871832913,-4461.02589026,0.00022999,2]
[311020530,1704871832925,-1713.03735611,0.00022999,2]
[311020533,1704871832938,-393.45872412,0.00022999,2]
[311020535,1704871832952,-1270.80557788,0.00022999,2]
[311020622,1704871833987,1095.79593955,0.00022501,2]
[311021083,1704871838436,-367917.36031955,0.00022999,2]
[311021107,1704871838657,-1256.41977766,0.00022999,2]
[311021347,1704871840750,-1343.98219328,0.00022999,2]
[311021359,1704871840855,-330.0,0.00022999,2]
[311021361,1704871840870,-831.8685269,0.00022999,2]
[311021364,1704871840881,-332.96938453,0.00022999,2]
[311021369,1704871840925,150.0,0.00021999,2]
[311021372,1704871840944,-983.82216087,0.00022999,2]
[311021374,1704871840956,-1346.31370766,0.00022999,2]
[311021377,1704871840968,-509.73860691,0.00022999,2]
[311021379,1704871840979,-649.02,0.00022999,2]
[311021381,1704871840990,-640.041,0.00022999,2]
[311021384,1704871841002,-495.56335415,0.00022999,2]
[311021386,1704871841014,-410.04619324,0.00022999,2]
[311021397,1704871841103,-294.61282538,0.00022999,2]
[311021442,1704871841586,-205086.18247516,0.00022999,2]
[311021446,1704871843324,-338.91068258,0.00022999,2]
[311021447,1704871843338,-392.42517802,0.00022999,2]
[311021448,1704871843352,-6947.37144605,0.00022999,2]
[311021449,1704871843382,-5512.38230237,0.00022999,2]
[311021450,1704871843395,-3069.63889084,0.00022999,2]
[311021451,1704871843406,-266.43816103,0.00022999,2]
[311021452,1704871843418,-569.85819587,0.00022999,2]
[311021453,1704871843445,-875.30668405,0.00022999,2]
[311021454,1704871843468,-122350.40074121,0.00022999,2]
[311021455,1704871843684,-1588.94284284,0.00022999,2]
[311021456,1704871843696,-715.67626768,0.00022999,2]
[311021457,1704871843708,-409.79455518,0.00022999,2]
[311021458,1704871843720,-3779.17951139,0.00022999,2]
[311021459,1704871843732,-893.79443958,0.00022999,2]
[311021460,1704871843743,-1367.80188262,0.00022999,2]
[311021463,1704871843769,-541.88479081,0.00022999,2]
[311021464,1704871843781,-405.00113522,0.00022999,2]
[311021465,1704871843793,-1192.9975616,0.00022999,2]
[311021466,1704871843805,-6454.34509549,0.00022999,2]
[311021467,1704871843816,-7473.9466717,0.00022999,2]
[311021468,1704871843847,-536.45723564,0.00022999,2]
[311021482,1704871848150,-3996.7000002,0.00022999,2]
[311021483,1704871848162,-595.87151147,0.00022999,2]
[311021484,1704871848173,-766.85828595,0.00022999,2]
[311021485,1704871851013,-0.56165792,0.00022999,2]
[311021486,1704871851133,360.26072372,0.00018398,2]
[311021487,1704871858270,6673.90915829,0.00022501,2]
[311021488,1704871858523,4627.37,0.00037165,30]
[311021489,1704871858696,3184.56736085,0.00022078,2]
[311021490,1704871882337,1078.72198885,0.00022077,2]
[311021491,1704871890470,1932.752725,0.00037165,30]
[311021492,1704872020152,10000.0,0.0003,120]
[311021493,1704872030597,170.37,0.00018194,2]
[311021494,1704872036829,5222.0,0.0003,120]
[311021495,1704872080520,251.27326429,0.000192,2]
[311021496,1704872124743,250.0,0.00022494,2]
[311021497,1704872125843,229.91,0.00022494,2]
[311021498,1704872220910,150.0,0.00022238,2]
[311021499,1704872238010,515.4,0.00020616,2]
[311021500,1704872253927,207.0,0.00021657,2]
[311021501,1704872324865,789.76,0.00022438,2]
[311021502,1704872344434,2000.0,0.00022261,2]
[311021503,1704872401324,14120.57,0.00022438,2]
[311021504,1704872406085,154.32053504,0.00022428,2]
[311021505,1704872426241,353.43741486,0.00022261,2]
[311021506,1704872434467,3185.21463735,0.00022077,2]
[311021507,1704872460022,168.92,0.00022404,2]
[311021508,1704872495220,165.12,0.00021837,2]
[311021509,1704872500957,7091.53,0.00021824,2]
[311021510,1704872566217,23900.0,0.00021841,2]
[311021511,1704872566655,251.06,0.00021831,2]
[311021512,1704872569535,624.69,0.00021831,2]
[311021513,1704872574769,1322.64544586,0.00020856,2]
[311021514,1704872575083,1322.64544586,0.00021128,2]
[311021515,1704872575413,1322.64544586,0.00021396,2]
[311021516,1704872575713,1322.64544586,0.00021651,2]
[311021517,1704872576786,1322.64544586,0.00021981,2]
[311021518,1704872576906,1322.64544586,0.00022456,2]
[311021519,1704872581059,557.92988483,0.0002198,2]
[311021520,1704872581580,163.7029504,0.0002198,2]
[311021521,1704872582484,2897.2003274,0.0002198,2]
[311021522,1704872582779,1254.29701492,0.0002198,2]
[311021523,1704872582874,265.07070248,0.0002198,2]
[311021524,1704872587497,841.77075875,0.0002198,2]
[311021525,1704872590689,757.72766232,0.00022501,2]
[311021526,1704872592298,383.58042321,0.00022501,2]
[311021527,1704872594008,155.0,0.00022501,2]
[311021528,1704872595766,336.54957331,0.00022501,2]
[311021529,1704872598889,170.92248736,0.00022395,2]
[311021530,1704872606888,326.50306657,0.00022501,2]
[311021531,1704872607381,3853.32732948,0.00022501,2]
[311021532,1704872609622,1912.10611571,0.00022501,2]
[311021533,1704872609769,2136.08960768,0.00022501,2]
[311021534,1704872610006,206.01974909,0.00022501,2]
[311021535,1704872612417,757.72766232,0.00022501,2]
[311021536,1704872612507,198.87132187,0.00022501,2]
[311021537,1704872613954,363.52386787,0.00022501,2]
[311021538,1704872614674,234.00983924,0.00022501,2]
[311021539,1704872615769,420.96301359,0.00022501,2]
[311021540,1704872615909,155.0,0.00022501,2]
[311021541,1704872616535,5093.19074374,0.00022501,2]
[311021542,1704872619316,155.0,0.00022501,2]
[311021543,1704872620568,3059.39,0.00021832,2]
[311021544,1704872621374,3849.91637634,0.00022501,2]
[311021545,1704872622891,326.17261721,0.00022501,2]
[311021546,1704872623327,524.34136284,0.00022501,2]
[311021547,1704872623373,1912.10611571,0.00022501,2]
[311021548,1704872624678,2776.04739328,0.00022501,2]
[311021549,1704872627765,2136.08960768,0.00022501,2]
[311021550,1704872627957,285.729364,0.00022501,2]
[311021551,1704872628513,198.87132187,0.00022501,2]
[311021552,1704872628686,233.79595388,0.00022501,2]
[311021553,1704872630421,756.68956947,0.00022501,2]
[311021554,1704872632038,284.94187757,0.00022501,2]
[311021555,1704872632547,5077.75169429,0.00022501,2]
[311021556,1704872634021,155.0,0.00022501,2]
[311021557,1704872635675,1060.13599255,0.00022501,2]
[311021558,1704872636584,190.72179871,0.000225,2]
[311021559,1704872636661,472.50263285,0.00022501,2]
[311021560,1704872637311,162.54625844,0.00022501,2]
[311021561,1704872637338,523.86841998,0.00022501,2]
[311021562,1704872638711,1887.26460822,0.000225,2]
[311021563,1704872642818,1000.0,0.00022501,2]
[311021564,1704872643235,2224.94721723,0.00022501,2]
[311021565,1704872643767,2136.08960768,0.00022501,2]
[311021566,1704872645390,409.63033263,0.00022501,2]
[311021567,1704872646505,200.18643562,0.00022501,2]
[311021568,1704872647508,284.94187757,0.00022501,2]
[311021569,1704872649786,1060.13599255,0.00022501,2]
[311021570,1704872650083,159.06634287,0.00022501,2]
[311021571,1704872651792,255.60792486,0.00022501,2]
[311021572,1704872654686,1885.72085918,0.00022501,2]
[311021573,1704872655901,472.16750413,0.00022501,2]
[311021574,1704872661292,1254.29701492,0.00022501,2]
[311021575,1704872661668,1000.0,0.00021826,2]
[311021576,1704872661777,806.89987082,0.00022501,2]
[311021577,1704872671513,293.03593816,0.00022501,2]
[311021578,1704872671685,638.66058872,0.00022501,2]
[311021579,1704872675780,1254.29701492,0.00022501,2]
[311021580,1704872681840,429.89415457,0.00021826,2]
[311021581,1704872697547,1254.29701492,0.00022501,2]
[311021582,1704872702113,150.0,0.00022502,2]
[311021583,1704872715298,208.04500811,0.00022501,2]
[311021584,1704872721936,181.0,0.00022501,2]
[311021585,1704872757557,489.63,0.00019988,2]
[311021586,1704872758000,489.63,0.00022252,2]
[311021587,1704872769407,151.4011,0.00022051,2]
[311021588,1704872780759,151.4011,0.00022051,2]
[311021589,1704872784812,1114.56444054,0.00022502,2]
[311021590,1704872789691,737.1,0.00021906,2]
[311021591,1704872790369,1932.752725,0.00037159,30]
[311021592,1704872791979,2000.0,0.00021906,2]
[311021593,1704872793450,151.4011,0.00022252,2]
[311021594,1704872796473,151.4011,0.00022252,2]
[311021595,1704872797590,151.4011,0.00022252,2]
[311021596,1704872798391,151.4011,0.00022252,2]
[311021597,1704872798795,151.4011,0.00022252,2]
[311021598,1704872799382,151.4011,0.00022252,2]
[311021599,1704872799859,151.4011,0.00022252,2]
[311021600,1704872800398,151.4011,0.00022252,2]
[311021601,1704872800926,151.4011,0.00022252,2]
[311021602,1704872801459,151.4011,0.00022252,2]
[311021603,1704872801997,151.4011,0.00022252,2]
[311021604,1704872802554,151.4011,0.00022252,2]
[311021605,1704872803155,151.4011,0.00022252,2]
[311021606,1704872803666,151.4011,0.00022252,2]
[311021607,1704872804158,151.4011,0.00022252,2]
[311021608,1704872804746,151.4011,0.00022252,2]
[311021609,1704872806046,151.4011,0.00022252,2]
[311021610,1704872806211,151.4011,0.00022252,2]
[311021611,1704872806377,151.4011,0.00022252,2]
[311021612,1704872806975,151.4011,0.00022252,2]
[311021613,1704872807536,151.4011,0.00022252,2]
[311021623,1704872825418,383.21919555,0.00022501,2]
[311021624,1704872830715,1322.64544586,0.00022305,2]
[311021625,1704872831891,161.51672734,0.000225,2]
[311021626,1704872862354,268.86,0.00022086,2]
[311021627,1704872862622,268.86,0.00022146,2]
[311021628,1704872862837,268.86,0.00022207,2]
[311021629,1704872862940,268.86,0.00022268,2]
[311021630,1704872863181,268.86,0.00022328,2]
[311021631,1704872863612,268.86,0.00022389,2]
[311021632,1704872864019,268.86,0.00022449,2]
[311021633,1704872865878,161.51672734,0.00022501,2]
[311021634,1704872876949,168.92,0.00022422,2]
[311021635,1704872882561,150.0,0.00022502,2]
[311021636,1704872889895,161.51672734,0.00022501,2]
[311021637,1704872904576,219.17295617,0.00022501,2]
[311021638,1704872919260,169.89,0.00021877,2]
[311021639,1704872953948,1322.64544586,0.00022433,2]
[311021640,1704872983112,213.86181292,0.00022501,2]
[311021645,1704873006309,312.34,0.00021889,2]
[311021657,1704873031443,-350.0,0.00022502,2]
[311021662,1704873031501,-2771.7146224,0.00022502,2]
[311021663,1704873031510,-150.0,0.00022502,2]
[311021665,1704873031520,-20761.42297345,0.00022503,2]
[311021666,1704873031532,-2546.90102141,0.00022503,2]
[311021667,1704873031543,-661.68277074,0.00022503,2]
[311021680,1704873032503,-453.52110926,0.00022503,2]
[311021681,1704873032517,-6194.86897003,0.00022503,2]
[311021682,1704873032547,-1101.91286177,0.00022503,2]
[311021683,1704873032559,-1070.78082913,0.00022503,2]
[311021684,1704873032571,-2224.53765689,0.00022503,2]
[311021685,1704873032614,-7919.40501438,0.00022503,2]
[311021686,1704873032624,-2894.60766726,0.00022507,2]
[311021687,1704873032634,-797.82599658,0.00022507,2]
[311021688,1704873032643,-833.60848674,0.00022508,2]
[311021689,1704873032652,-264.81217308,0.00022508,2]
[311021690,1704873032662,-166.91574702,0.00022508,2]
[311021691,1704873032671,-268.86,0.0002251,2]
[311021692,1704873032680,-1322.64544586,0.0002256,2]
[311021693,1704873032689,-268.86,0.0002257,2]
[311021694,1704873032698,-268.86,0.00022631,2]
[311021695,1704873032707,-150.99,0.00022645,2]
[311021696,1704873032717,-378.35,0.00022645,2]
[311021697,1704873032726,-923.28,0.00022645,2]
[311021698,1704873032735,-499.99,0.00022645,2]
[311021700,1704873032744,-153.32,0.0002268,2]
[311021702,1704873032754,-268.86,0.00022692,2]
[311021704,1704873032763,-268.86,0.00022752,2]
[311021706,1704873032772,-4424.2432,0.000228,2]
[311021708,1704873032782,-268.86,0.00022813,2]
[311021710,1704873032791,-154.32053494,0.00022851,2]
[311021712,1704873032801,-268.86,0.00022873,2]
[311021715,1704873032811,-800.0,0.00022877,2]
[311021717,1704873032820,-737.1,0.00022885,2]
[311021719,1704873032830,-1191.4782,0.00022897,2]
[311021721,1704873032840,-500.0,0.00022899,2]
[311021723,1704873032849,-1000.0,0.000229,2]
[311021725,1704873032859,-11751.9953,0.000229,2]
[311021727,1704873032869,-639.12745539,0.000229,2]
[311021729,1704873032881,-390.65795995,0.000229,2]
[311021731,1704873032897,-210.13098466,0.000229,2]
[311021733,1704873032907,-290.48572965,0.00022931,2]
[311021736,1704873032919,-609.47075554,0.00022931,2]
[311021738,1704873032929,-323.39839969,0.00022932,2]
[311021740,1704873032939,-32.30097423,0.00022934,2]
[311021742,1704873032956,-236.55902577,0.00022934,2]
[311021745,1704873032967,-707.43612136,0.00022955,2]
[311021748,1704873032987,-137.71787864,0.00022955,2]
[311021750,1704873032996,-215.14,0.00022959,2]
[311021752,1704873033006,-214.2123118,0.00022974,2]
[311021754,1704873033015,-268.86,0.00022994,2]
[311021756,1704873033024,-252.7648227,0.00022997,2]
[311021758,1704873033033,-514.39133793,0.00022997,2]
[311021760,1704873033044,-719.1869889,0.00022997,2]
[311022239,1704873037770,-402.71148692,0.00022997,2]
[311022241,1704873037780,-43.33506774,0.00022997,2]
[311022252,1704873037881,-246.04825786,0.00022997,2]
[311022254,1704873037890,-353.5081814,0.00022997,2]
[311022257,1704873037900,-100.73690646,0.00022997,2]
[311022259,1704873037912,-54.26309354,0.00022997,2]
[311022261,1704873037922,-239.23760726,0.00022997,2]
[311022275,1704873038048,-366.15258378,0.00022997,2]
[311022278,1704873038060,-3018.19296304,0.00022997,2]
[311022293,1704873038202,-883.38101226,0.00022997,2]
[311022295,1704873038211,-155.40206774,0.00022997,2]
[311022297,1704873038221,-12097.49130361,0.00022997,2]
[311022299,1704873038231,-155.0,0.00022998,2]
[311022301,1704873038240,-3373.46429136,0.00022998,2]
[311022303,1704873038250,-59706.96019582,0.00022999,2]
[311022306,1704873038259,-1031.79581061,0.00022999,2]
[311022308,1704873038269,-608.8671776,0.00022999,2]
[311022310,1704873038278,-293578.855366,0.00023,4]
[311022312,1704873038287,-1322.64544586,0.00023032,2]
[311022314,1704873038297,-268.86,0.00023055,2]
[311022316,1704873038306,-268.86,0.00023116,2]
[311022318,1704873038315,-268.86,0.00023176,2]
[311022319,1704873038324,-268.86,0.00023237,2]
[311022320,1704873038333,-225.88,0.00023247,2]
[311022321,1704873038342,-449.99999999,0.00023266,2]
[311022322,1704873038350,-154.32053494,0.00023273,2]
[311022323,1704873038359,-154.32053494,0.00023696,2]
[311022324,1704873038368,-737.1,0.00023863,2]
[311022325,1704873038377,-207.0,0.00023918,2]
[311022326,1704873038386,-14799.103153,0.00024,2]
[311022327,1704873038396,-200.80356946,0.00024,2]
[311022328,1704873038405,-430.79595322,0.00024,2]
[311022329,1704873038415,-169.89,0.00024064,2]
[311022330,1704873038425,-154.32053494,0.00024119,2]
[311022332,1704873038434,-899.95648519,0.00024181,2]
[311022334,1704873038444,-489.63,0.00024516,2]
[311022336,1704873038453,-154.32053494,0.00024541,2]
[311022338,1704873038461,-624.69,0.00024559,2]
[311022340,1704873038470,-225.88,0.00024617,2]
[311022342,1704873038479,-312.34,0.00024626,2]
[311022344,1704873038488,-250.0,0.00024658,2]
[311022346,1704873038497,-176.5,0.00024834,2]
[311022348,1704873038507,-737.1,0.00024842,2]
[311022350,1704873038517,-154.32053494,0.00024964,2]
[311022352,1704873038527,-288.34029165,0.00025,2]
[311022354,1704873038536,-302.92406179,0.00025,2]
[311022356,1704873038545,-1016.9503095,0.00025,2]
[311022358,1704873038554,-1246.60618459,0.00025,2]
[311022360,1704873038564,-376.57181299,0.00025,2]
[311022362,1704873038572,-350.0,0.00025,3]
[311022364,1704873038583,-650.0,0.00025,2]
[311022366,1704873038592,-154.32053494,0.00025387,2]
[311022368,1704873038600,-899.95648519,0.00025431,2]
[311022370,1704873038610,-728.00554382,0.00025614,2]
[311022372,1704873038618,-154.32053494,0.00025809,2]
[311022374,1704873038627,-737.1,0.0002582,2]
[311022376,1704873038636,-406.92079259,0.00025902,2]
[311022378,1704873038645,-159.64,0.00025926,2]
[311022380,1704873038654,-150.0,0.00026079,2]
[311022382,1704873038663,-151.64,0.00026198,2]
[311022384,1704873038671,-165.12,0.00026205,2]
[311022386,1704873038680,-154.32053494,0.00026232,2]
[311022388,1704873038688,-169.89,0.00026252,2]
[311022390,1704873038697,-176.5,0.00026341,2]
[311022392,1704873038707,-804.62,0.00026341,2]
[311022394,1704873038716,-804.62,0.0002648,2]
[311022396,1704873038727,-6095.93,0.00026575,2]
[311022398,1704873038736,-1593.01,0.00026575,2]
[311022400,1704873038745,-804.62,0.00026618,2]
[311022402,1704873038754,-161.68,0.00026621,2]
[311022404,1704873038763,-1134.74002866,0.00026639,2]
[311022406,1704873038772,-302.52130041,0.0002664,2]
[311022408,1704873038783,-154.32053494,0.00026655,2]
[311022410,1704873038792,-899.95648519,0.00026681,3]
[311022413,1704873038803,-804.62,0.00026757,2]
[311022414,1704873038812,-489.63,0.0002678,2]
[311022416,1704873038821,-737.1,0.00026799,2]
[311022419,1704873038831,-327.31456736,0.00026817,2]
[311022421,1704873038841,-161.68,0.00026885,2]
[311022423,1704873038850,-804.62,0.00026895,2]
[311022425,1704873038859,-153.32,0.00026947,2]
[311022427,1704873038867,-400.0,0.00027,3]
[311022429,1704873038876,-804.62,0.00027034,2]
[311022431,1704873038885,-154.32053494,0.00027077,2]
[311022433,1704873038895,-161.68,0.00027148,2]
[311022435,1704873038903,-804.62,0.00027173,2]
[311022436,1704873038913,-624.69,0.00027288,2]
[311022438,1704873038922,-45147.0,0.000273,2]
[311022440,1704873038931,-804.62,0.00027311,2]
[311022443,1704873038941,-312.34,0.00027362,2]